bitfinex/quotes_SOLUSD_20250206
["timestamp","ask_amount","ask_price","bid_price","bid_amount"]
[1738870810022,0.10999204,189.98,189.95,20.25098]
[1738870810225,0.10999204,189.98,189.96,33.41184853]
[1738870810226,7.589e-05,189.98,189.96,33.41184853]
[1738870810420,7.589e-05,189.98,189.97,22.42617032]
[1738870810603,7.589e-05,189.98,189.97,21.63694723]
[1738870811206,7.589e-05,189.98,189.95,21.63694723]
[1738870811416,7.589e-05,189.98,189.96,21.63694723]
[1738870811815,7.589e-05,189.98,189.97,5.2639]
[1738870812012,7.589e-05,189.98,189.94,21.63694723]
[1738870812217,7.589e-05,189.98,189.94,26.90174723]
[1738870812712,7.589e-05,189.98,189.94,5.2648]
[1738870812913,21.63694723,189.97,189.91,5.2656]
[1738870813212,21.63694723,189.94,189.88,5.2664]
[1738870813411,21.63694723,189.95,189.88,26.90334723]
[1738870813740,6.04767589,189.98,189.88,5.2664]
[1738870813741,21.63694723,189.94,189.88,5.2664]
[1738870814431,21.63694723,189.92,189.86,5.2669]
[1738870814935,0.11482077,189.89,189.86,5.2669]
[1738870815122,0.11482077,189.89,189.86,26.90384723]
[1738870815427,0.11482077,189.89,189.87,21.63694723]
[1738870816628,0.11482077,189.89,189.88,5.2664]
[1738870818628,0.11482077,189.89,189.88,26.90334723]
[1738870821833,2.077e-05,189.89,189.88,40.56617576]
[1738870822142,6.662e-05,189.92,189.89,13.66282853]
[1738870822325,6.662e-05,189.92,189.91,35.04879576]
[1738870823129,6.662e-05,189.92,189.91,40.31439576]
[1738870823343,6.662e-05,189.92,189.91,5.2656]
[1738870823645,6.662e-05,189.92,189.91,26.90254723]
[1738870825615,6.662e-05,189.92,189.91,40.31439576]
[1738870826135,6.662e-05,189.92,189.91,41.10389942]
[1738870826526,6.662e-05,189.92,189.91,40.31439576]
[1738870826921,6.662e-05,189.92,189.91,5.2656]
[1738870827724,6.662e-05,189.92,189.91,26.90254723]
[1738870828444,6.662e-05,189.92,189.91,27.69219892]
[1738870828948,6.662e-05,189.92,189.91,26.90254723]
[1738870829538,6.662e-05,189.92,189.91,5.2656]
[1738870829939,6.662e-05,189.92,189.88,21.63694723]
[1738870830120,6.662e-05,189.92,189.89,5.2662]
[1738870830951,6.662e-05,189.92,189.9,21.63694723]
[1738870831145,6.662e-05,189.92,189.91,21.63694723]
[1738870831652,0.00928077,189.93,189.92,5.2653]
[1738870831839,0.00928077,189.93,189.92,26.90224723]
[1738870832045,0.00928077,189.93,189.92,5.2653]
[1738870833421,0.00928077,189.93,189.91,5.2656]
[1738870833628,0.00928077,189.93,189.92,21.63694723]
[1738870834639,0.00928077,189.93,189.92,35.83834516]
[1738870834949,4.72e-06,189.95,189.92,36.08932516]
[1738870835151,4.72e-06,189.95,189.94,35.04879576]
[1738870835359,2.707e-05,189.96,189.94,35.83818641]
[1738870835533,2.707e-05,189.96,189.95,40.31329576]
[1738870835867,0.03029682,189.98,189.97,20.0]
[1738870836036,0.1762188,190.02,189.98,13.41184853]
[1738870836348,6.267e-05,190.0,189.99,57.47492104]
[1738870836732,3.029e-05,190.01,190.0,35.04879576]
[1738870837238,4.909e-05,190.02,190.0,35.04879576]
[1738870837544,4.909e-05,190.03,190.02,13.41184853]
[1738870837753,4.909e-05,190.03,190.02,35.04879576]
[1738870838268,4.909e-05,190.03,190.02,21.63694723]
[1738870839372,4.909e-05,190.03,190.02,5.2626]
[1738870840576,4.909e-05,190.03,190.0,21.63694723]
[1738870840757,4.909e-05,190.03,190.01,5.2628]
[1738870841491,4.909e-05,190.03,189.96,21.63694723]
[1738870841492,21.63699632,190.03,189.96,21.63694723]
[1738870842153,21.63694723,190.02,189.95,40.06274723]
[1738870842353,21.63694723,190.01,189.95,5.2645]
[1738870842872,27.90874723,190.02,189.95,26.90144723]
[1738870843047,6.2718,190.02,189.95,26.90144723]
[1738870843758,6.2718,190.02,189.96,21.63694723]
[1738870843962,4.909e-05,190.03,190.01,21.63694723]
[1738870844446,4.909e-05,190.03,190.02,21.63694723]
[1738870845764,4.909e-05,190.03,190.02,26.89954723]
[1738870846347,4.909e-05,190.03,189.98,21.63694723]
[1738870846675,4.909e-05,190.03,189.97,5.2639]
[1738870847056,21.63699632,190.03,189.97,5.2639]
[1738870847255,21.63694723,190.02,189.97,5.2639]
[1738870847473,4.909e-05,190.03,189.97,5.2639]
[1738870847772,21.63699632,190.03,189.97,5.2639]
[1738870848168,21.63694723,190.0,189.96,5.2642]
[1738870848369,21.63694723,190.01,189.96,5.2642]
[1738870848556,21.88797632,190.03,189.96,5.2642]
[1738870848963,4.909e-05,190.03,189.97,21.63694723]
[1738870849176,4.909e-05,190.03,189.98,21.63694723]
[1738870849474,4.909e-05,190.03,190.02,0.063]
[1738870849779,0.25098,189.99,189.9,21.63694723]
[1738870850072,21.63694723,189.95,189.9,5.2659]
[1738870850579,21.88792723,189.99,189.92,21.63694723]
[1738870850580,21.63694723,189.99,189.92,21.63694723]
[1738870850764,21.63694723,189.99,189.91,21.63694723]
[1738870851160,21.63694723,189.98,189.91,21.63694723]
[1738870851863,21.63694723,189.98,189.92,5.2653]
[1738870852378,21.63694723,189.98,189.89,5.3291]
[1738870852379,21.63694723,189.95,189.89,5.3291]
[1738870852555,21.63694723,189.96,189.89,26.96604723]
[1738870852755,21.63694723,189.96,189.89,5.3291]
[1738870853262,21.63694723,189.95,189.89,5.3291]
[1738870853467,21.63694723,189.96,189.89,26.96604723]
[1738870854584,21.63694723,189.97,189.9,21.63694723]
[1738870854781,0.09647204,189.91,189.9,21.63694723]
[1738870855575,0.09647204,189.91,189.89,21.69994723]
[1738870856385,21.73341927,189.91,189.89,0.063]
[1738870856897,0.09647204,189.91,189.89,5.3292]
[1738870857885,0.09647204,189.91,189.89,0.063]
[1738870858199,0.09647204,189.91,189.89,21.69994723]
[1738870859298,0.09647204,189.91,189.89,0.063]
[1738870860161,21.88792723,189.9,189.89,0.063]
[1738870862405,24.64631723,189.9,189.89,0.063]
[1738870862574,47.94026446,189.9,189.89,0.063]
[1738870863098,26.30331723,189.9,189.89,0.063]
[1738870863288,47.94026446,189.9,189.89,0.063]
[1738870863463,36.59727,189.87,189.86,0.063]
[1738870863663,58.23421723,189.87,189.86,0.063]
[1738870863887,59.23421723,189.87,189.86,0.063]
[1738870864491,60.86751723,189.87,189.86,0.063]
[1738870864672,27.85774723,189.87,189.86,0.063]
[1738870866299,21.63694723,189.87,189.86,0.063]
[1738870866500,30.09647204,189.91,189.86,0.063]
[1738870866501,0.09647204,189.91,189.86,0.063]
[1738870866800,0.09647204,189.91,189.88,41.63694723]
[1738870867174,0.09647204,189.91,189.89,21.63694723]
[1738870867396,0.09647204,189.91,189.88,41.63694723]
[1738870868395,0.09647204,189.91,189.89,21.63694723]
[1738870868599,0.09647204,189.91,189.9,26.90284723]
[1738870870173,0.09647204,189.91,189.9,5.2659]
[1738870870895,21.73341927,189.91,189.86,0.063]
[1738870871073,0.09647204,189.91,189.86,5.33]
[1738870871997,21.63694723,189.9,189.86,0.063]
[1738870872182,21.63694723,189.88,189.86,0.063]
[1738870872696,21.63694723,189.87,189.86,0.063]
[1738870873415,28.28244723,189.87,189.86,0.063]
[1738870874784,31.39865764,189.87,189.86,0.063]
[1738870876003,28.38888764,189.87,189.86,0.063]
[1738870876216,6.75194041,189.87,189.86,0.063]
[1738870876422,0.10644041,189.87,189.86,0.063]
[1738870877492,24.37668764,189.87,189.86,0.063]
[1738870877693,21.74338764,189.87,189.86,0.063]
[1738870878421,24.37668764,189.87,189.86,0.063]
[1738870879123,0.10644041,189.87,189.86,0.063]
[1738870880011,21.74338764,189.87,189.86,0.063]
[1738870880215,51.74338764,189.87,189.86,0.063]
[1738870880410,52.11985764,189.87,189.86,0.063]
[1738870881326,54.75315764,189.87,189.86,0.063]
[1738870885537,54.75315764,189.87,189.84,0.03]
[1738870885538,31.37647,189.85,189.84,0.03]
[1738870885743,30.0,189.81,189.79,0.03]
[1738870885921,22.01341723,189.8,189.79,0.03]
[1738870886605,21.63694723,189.8,189.79,0.03]
[1738870887815,21.63694723,189.83,189.79,0.03]
[1738870888016,21.63694723,189.84,189.79,0.03]
[1738870888331,28.25584723,189.85,189.79,0.03]
[1738870888539,21.63694723,189.84,189.79,0.03]
[1738870891044,28.25584723,189.85,189.79,0.03]
[1738870892554,21.63694723,189.85,189.79,0.03]
[1738870892759,21.63694723,189.86,189.79,21.66694723]
[1738870893126,21.63694723,189.85,189.79,0.03]
[1738870894154,21.63694723,189.86,189.79,26.93584723]
[1738870894549,0.10644041,189.87,189.8,21.63694723]
[1738870894744,0.11475937,189.81,189.8,21.63694723]
[1738870895149,5.937e-05,189.81,189.8,35.83885576]
[1738870895349,5.071e-05,189.83,189.81,13.41184853]
[1738870895543,0.07654458,189.84,189.83,20.0]
[1738870895747,0.07654458,189.84,189.83,41.63694723]
[1738870896333,0.07654458,189.84,189.83,46.90474723]
[1738870896539,0.07654458,189.84,189.83,60.31659576]
[1738870896754,0.07654458,189.84,189.83,61.94079576]
[1738870897343,4.458e-05,189.84,189.83,61.94079576]
[1738870897537,7.174e-05,189.85,189.83,62.44275576]
[1738870897744,0.03009741,189.86,189.84,35.8385768]
[1738870898073,6.292e-05,189.87,189.85,35.55075576]
[1738870898277,6.292e-05,189.87,189.86,22.42662917]
[1738870898449,6.292e-05,189.87,189.86,27.69362917]
[1738870899351,6.71e-06,189.88,189.87,0.50196]
[1738870899658,0.14267179,189.89,189.88,33.91380853]
[1738870899659,7.85e-05,189.89,189.88,33.91380853]
[1738870899855,7.85e-05,189.89,189.88,56.34032269]
[1738870900651,0.0001,189.91,189.89,13.91380853]
[1738870900850,0.0001,189.91,189.9,0.78952613]
[1738870901047,0.0001,189.91,189.9,57.97722912]
[1738870901366,0.0001,189.91,189.9,66.17972912]
[1738870902677,0.0001,189.91,189.9,72.79274297]
[1738870903773,4.909e-05,190.03,189.94,20.0]
[1738870903976,4.909e-05,190.03,190.0,21.63694723]
[1738870904180,4.909e-05,190.03,189.98,41.63694723]
[1738870904851,4.909e-05,190.03,189.99,5.2634]
[1738870905466,4.909e-05,190.03,189.99,26.90034723]
[1738870906288,4.909e-05,190.03,190.01,21.63694723]
[1738870906448,4.909e-05,190.03,190.02,21.63694723]
[1738870906881,4.909e-05,190.03,190.02,26.89954723]
[1738870908871,4.909e-05,190.03,190.02,40.31139576]
[1738870909574,0.063,190.06,190.05,20.0]
[1738870909753,0.03,190.08,190.07,21.63694723]
[1738870910451,0.03,190.08,190.07,35.04879576]
[1738870910657,0.03,190.09,190.08,13.41184853]
[1738870910857,0.0001,190.09,190.08,56.68574299]
[1738870911093,0.0001,190.09,190.08,40.30969576]
[1738870911256,0.0001,190.09,190.08,26.89784723]
[1738870911782,0.0001,190.09,190.08,5.2609]
[1738870912365,0.0001,190.09,190.08,26.89784723]
[1738870912653,0.0001,190.09,190.08,40.30969576]
[1738870912854,0.0001,190.09,190.08,5.2609]
[1738870913270,0.0001,190.09,190.08,26.89784723]
[1738870914761,0.11230763,190.09,190.08,26.89784723]
[1738870915461,0.11230763,190.09,190.08,40.30969576]
[1738870915684,0.11230763,190.09,190.08,41.09856288]
[1738870915979,7.63e-06,190.09,190.08,41.09856288]
[1738870916483,4.839e-05,190.1,190.08,62.73551011]
[1738870916680,6.711e-05,190.11,190.09,37.20085576]
[1738870916987,4.095e-05,190.12,190.11,0.50196]
[1738870917278,0.12611937,190.18,190.14,33.41184853]
[1738870917279,4.068e-05,190.15,190.14,33.41184853]
[1738870917462,4.068e-05,190.15,190.14,55.04879576]
[1738870917978,4.068e-05,190.15,190.14,60.30799576]
[1738870918164,19.67637896,190.25,190.15,13.41184853]
[1738870918367,21.63694723,190.24,190.17,21.63694723]
[1738870919273,21.63694723,190.25,190.18,21.63694723]
[1738870919578,21.63694723,190.24,190.17,21.63694723]
[1738870920462,21.63694723,190.24,190.18,5.2581]
[1738870921687,21.63694723,190.19,190.15,5.259]
[1738870921867,21.63694723,190.2,190.15,5.259]
[1738870922565,21.63694723,190.19,190.14,25.2592]
[1738870923087,21.63694723,190.18,190.14,5.2592]
[1738870923261,21.63694723,190.17,190.12,5.2595]
[1738870923590,21.63694723,190.21,190.14,21.63694723]
[1738870923776,21.63694723,190.2,190.13,26.89644723]
[1738870923970,21.63694723,190.19,190.13,5.2595]
[1738870924288,21.63694723,190.15,190.1,5.2603]
[1738870924474,21.63694723,190.15,190.08,21.63694723]
[1738870924783,30.0,190.17,190.07,21.63694723]
[1738870924784,21.63694723,190.14,190.07,21.63694723]
[1738870925090,21.63694723,190.13,190.07,21.63694723]
[1738870925284,21.63694723,190.13,190.03,21.63694723]
[1738870925285,21.63694723,190.1,190.03,21.63694723]
[1738870925668,21.63694723,190.1,190.0,1.3418976]
[1738870925669,21.63694723,190.09,190.02,26.89954723]
[1738870925867,21.63694723,190.12,190.04,21.63694723]
[1738870926182,21.63694723,190.12,190.05,20.0]
[1738870926389,21.63694723,190.09,190.02,26.89954723]
[1738870926580,21.63694723,190.06,190.02,5.2626]
[1738870927086,21.63694723,190.06,190.0,5.2631]
[1738870929787,21.63694723,190.05,189.99,5.2634]
[1738870930091,21.58694723,190.06,189.99,26.90034723]
[1738870931267,6.2034,190.09,190.02,21.63694723]
[1738870931497,6.2034,190.09,189.99,13.41184853]
[1738870931498,21.63694723,190.11,190.04,21.63694723]
[1738870931688,21.63694723,190.09,190.02,21.63694723]
[1738870932071,8.1105,190.14,190.05,20.0]
[1738870932391,82.1,190.15,190.1,21.63694723]
[1738870932575,9.0817,190.18,190.11,21.63694723]
[1738870932576,28.08954723,190.18,190.11,21.63694723]
[1738870932781,21.63694723,190.17,190.1,21.63694723]
[1738870933371,28.08954723,190.18,190.11,26.89704723]
[1738870933574,6.4526,190.18,190.12,21.63694723]
[1738870933989,28.08954723,190.18,190.11,26.89704723]
[1738870934378,6.4526,190.18,190.12,21.63694723]
[1738870934778,0.0984826,190.13,190.12,21.63694723]
[1738870935480,0.0984826,190.13,190.12,26.89674723]
[1738870937178,0.0984826,190.13,190.11,21.63694723]
[1738870937585,0.0984826,190.13,190.09,40.04864723]
[1738870937786,0.0984826,190.13,190.12,21.63694723]
[1738870939302,0.0984826,190.13,190.12,26.89674723]
[1738870942081,8.26e-05,190.13,190.12,41.09738168]
[1738870942321,0.10007125,190.14,190.12,41.09738168]
[1738870942322,5.385e-05,190.14,190.12,41.09738168]
[1738870942607,4.039e-05,190.16,190.15,20.0]
[1738870942801,6.885e-05,190.19,190.16,13.41184853]
[1738870943097,6.885e-05,190.19,190.18,21.63694723]
[1738870943403,6.885e-05,190.19,190.18,26.89504723]
[1738870947886,6.885e-05,190.19,190.18,5.2581]
[1738870948087,0.03006885,190.19,190.18,5.2581]
[1738870948398,3.5e-06,190.2,190.19,13.41184853]
[1738870949395,8.106e-05,190.22,190.2,33.91380853]
[1738870949698,0.03,190.25,190.24,0.04991894]
[1738870949904,0.03,190.25,190.24,14.98950312]
[1738870950201,0.063,190.31,190.24,28.40135165]
[1738870950414,0.063,190.31,190.29,14.93958418]
[1738870950600,0.063,190.31,190.3,14.93958418]
[1738870950806,0.063,190.33,190.32,20.0]
[1738870951111,0.063,190.33,190.32,34.93958418]
[1738870951308,0.063,190.33,190.32,36.24404855]
[1738870951519,0.063,190.33,190.32,40.19388418]
[1738870952289,0.063,190.33,190.32,53.60573271]
[1738870952609,0.0001,190.33,190.32,54.10769271]
[1738870952909,0.03,190.39,190.32,62.53172324]
[1738870953116,0.03,190.39,190.35,23.86557471]
[1738870953615,0.03,190.39,190.29,23.86557471]
[1738870953830,23.86557471,190.36,190.29,23.86557471]
[1738870954722,23.86557471,190.36,190.31,5.2545]
[1738870954930,0.11392772,190.32,190.31,5.2545]
[1738870955296,0.11392772,190.32,190.31,29.12007471]
[1738870955495,2.772e-05,190.32,190.31,29.12007471]
[1738870958131,2.772e-05,190.32,190.31,42.53192324]
[1738870958299,2.772e-05,190.32,190.31,43.31981031]
[1738870958903,2.772e-05,190.32,190.31,42.53192324]
[1738870960501,2.772e-05,190.32,190.31,43.87568388]
[1738870961524,2.772e-05,190.32,190.31,29.12007471]
[1738870963508,2.772e-05,190.32,190.31,5.2545]
[1738870964624,2.772e-05,190.32,190.29,5.3179]
[1738870964824,23.86560243,190.32,190.29,0.063]
[1738870965035,23.86557471,190.31,190.29,0.063]
[1738870965327,23.86557471,190.3,190.29,0.063]
[1738870965528,56.86944471,190.3,190.29,0.063]
[1738870965736,57.86944471,190.3,190.29,0.063]
[1738870966113,56.86944471,190.3,190.29,0.063]
[1738870966433,23.86557471,190.3,190.29,0.063]
[1738870966629,23.86560243,190.32,190.29,0.063]
[1738870967009,2.772e-05,190.32,190.29,0.063]
[1738870968416,23.86560243,190.32,190.29,0.063]
[1738870968819,2.772e-05,190.32,190.29,0.063]
[1738870971810,0.03002772,190.32,190.29,0.063]
[1738870972545,0.03002772,190.32,190.29,23.92857471]
[1738870972711,0.03002772,190.32,190.31,23.86557471]
[1738870974336,0.03002772,190.32,190.31,29.12007471]
[1738870974715,0.14006162,190.32,190.31,29.12007471]
[1738870975829,0.14006162,190.32,190.29,0.063]
[1738870976033,0.14006162,190.32,190.3,5.2548]
[1738870976510,0.1400339,190.32,190.3,5.2548]
[1738870977146,0.1400339,190.32,190.31,23.86557471]
[1738870977430,0.1400339,190.32,190.3,29.12037471]
[1738870979213,0.1400339,190.32,190.3,5.2548]
[1738870980741,0.1400339,190.32,190.3,29.12037471]
[1738870981734,0.1400339,190.32,190.29,0.063]
[1738870981919,24.00560861,190.32,190.29,0.063]
[1738870982541,26.63280861,190.32,190.29,0.063]
[1738870983047,23.86557471,190.31,190.29,0.063]
[1738870983339,24.00560861,190.32,190.29,0.063]
[1738870983644,0.1400339,190.32,190.29,0.063]
[1738870984645,0.1400339,190.32,190.3,14.92530563]
[1738870985634,0.1400339,190.32,190.29,14.98830563]
[1738870985842,0.1400339,190.32,190.3,5.2548]
[1738870988849,0.1400339,190.32,190.31,23.88264427]
[1738870991252,0.1400339,190.32,190.31,29.13714427]
[1738870994730,0.25382792,190.32,190.31,29.13714427]
[1738870996546,0.14379402,190.32,190.31,29.13714427]
[1738870997246,9.402e-05,190.32,190.31,29.13714427]
[1738870997773,9.402e-05,190.32,190.31,43.33688677]
[1738870998280,9.402e-05,190.32,190.31,42.5489928]
[1738870999343,6.755e-05,190.35,190.34,20.12549]
[1738870999545,1.476e-05,190.37,190.35,0.12549]
[1738870999755,1.476e-05,190.37,190.36,37.2944928]
[1738871000472,0.11009731,190.4,190.36,37.2944928]
[1738871000473,6.226e-05,190.39,190.37,13.53733853]
[1738871000777,6.226e-05,190.39,190.38,37.2944928]
[1738871000962,6.226e-05,190.39,190.38,23.88264427]
[1738871001577,23.88264427,190.47,190.38,23.88264427]
[1738871001578,8.15439909,190.47,190.38,23.88264427]
[1738871001755,26.50764427,190.47,190.4,23.88264427]
[1738871001951,23.88264427,190.47,190.4,23.88264427]
[1738871002688,26.50774427,190.47,190.4,29.13454427]
[1738871003365,23.88264427,190.47,190.4,29.13454427]
[1738871003567,23.88264427,190.46,190.4,5.2519]
[1738871003768,23.88264427,190.44,190.37,23.88264427]
[1738871003968,23.88264427,190.43,190.36,23.88264427]
[1738871004666,23.88264427,190.43,190.37,5.2529]
[1738871004866,23.88264427,190.43,190.37,29.13554427]
[1738871005083,30.0,190.45,190.39,23.88264427]
[1738871005084,23.88264427,190.45,190.39,23.88264427]
[1738871005687,26.50784427,190.47,190.4,23.88264427]
[1738871006292,23.88264427,190.46,190.4,5.2519]
[1738871006775,30.0,190.47,190.4,20.16239041]
[1738871006776,14.91049041,190.47,190.4,20.16239041]
[1738871007673,44.91049041,190.47,190.4,20.16239041]
[1738871007878,14.91049041,190.44,190.36,14.91049041]
[1738871008263,14.91049041,190.44,190.37,14.91049041]
[1738871008689,14.91049041,190.44,190.36,14.91049041]
[1738871008896,14.91049041,190.43,190.36,14.91049041]
[1738871009382,14.91049041,190.42,190.35,14.91049041]
[1738871010492,14.91049041,190.42,190.36,5.2532]
[1738871010800,14.91049041,190.4,190.34,5.2537]
[1738871011101,18.53629041,190.42,190.35,14.91049041]
[1738871011594,14.91049041,190.41,190.34,20.16419041]
[1738871014093,14.91049041,190.39,190.33,5.254]
[1738871014308,14.91049041,190.37,190.3,14.97349041]
[1738871014600,14.91049041,190.38,190.31,20.16499041]
[1738871014778,0.10458371,190.32,190.31,20.16499041]
[1738871018191,0.10458371,190.32,190.3,5.3177]
[1738871018583,0.10458371,190.32,190.3,0.063]
[1738871019615,15.01507412,190.32,190.3,0.063]
[1738871019778,2.73168371,190.32,190.31,0.063]
[1738871020676,5.33598371,190.32,190.31,0.063]
[1738871020877,20.24647412,190.32,190.31,0.063]
[1738871022503,19.24647412,190.32,190.31,0.063]
[1738871023203,4.33598371,190.32,190.31,0.063]
[1738871023497,0.10458371,190.32,190.31,0.063]
[1738871025590,47.64217412,190.32,190.31,0.063]
[1738871026322,0.10458371,190.32,190.31,14.97349041]
[1738871026709,0.10458371,190.32,190.31,20.22799041]
[1738871028617,8.371e-05,190.32,190.31,20.22799041]
[1738871028823,3.844e-05,190.33,190.32,0.50196]
[1738871029017,7.653e-05,190.36,190.35,20.0]
[1738871029319,3.114e-05,190.37,190.36,1.6328]
[1738871029522,3.114e-05,190.37,190.36,16.66878041]
[1738871029731,3.114e-05,190.37,190.36,17.45645825]
[1738871030416,3.114e-05,190.37,190.36,22.70965825]
[1738871030603,3.114e-05,190.37,190.36,21.79649041]
[1738871031715,0.03003114,190.37,190.36,20.16369041]
[1738871031906,0.03003114,190.37,190.36,5.2532]
[1738871032222,0.03003114,190.37,190.33,14.91049041]
[1738871032811,0.03003114,190.37,190.34,5.2537]
[1738871033431,0.03003114,190.37,190.35,14.91049041]
[1738871033625,0.03003114,190.37,190.34,20.16419041]
[1738871033927,0.03003114,190.37,190.35,14.91049041]
[1738871034516,0.03003114,190.37,190.32,14.91049041]
[1738871034804,0.03003114,190.37,190.33,5.2537]
[1738871034805,0.09639217,190.36,190.33,5.2537]
[1738871035111,0.09639217,190.36,190.34,14.91049041]
[1738871036228,0.04639217,190.36,190.35,5.2534]
[1738871037127,0.04639217,190.36,190.35,20.16389041]
[1738871037426,0.14251406,190.37,190.35,20.16389041]
[1738871037427,0.09621406,190.37,190.35,20.16389041]
[1738871037603,0.09621406,190.37,190.36,15.69820427]
[1738871038528,1.406e-05,190.37,190.36,21.07689427]
[1738871039707,1.406e-05,190.37,190.36,27.17149427]
[1738871040320,1.406e-05,190.37,190.36,20.16369041]
[1738871040512,1.406e-05,190.37,190.36,20.28918041]
[1738871040714,1.406e-05,190.37,190.36,29.23138933]
[1738871043231,0.03001406,190.37,190.36,29.23138933]
[1738871043427,0.03001406,190.37,190.36,29.10589933]
[1738871045021,0.03001406,190.37,190.34,23.85269933]
[1738871045229,0.03001406,190.37,190.35,5.2534]
[1738871046234,0.03001406,190.37,190.35,23.85269933]
[1738871047533,0.03001406,190.37,190.36,29.10589933]
[1738871048236,23.88271339,190.37,190.32,5.2543]
[1738871048435,23.85269933,190.36,190.31,5.3175]
[1738871048731,23.88271339,190.37,190.31,5.3175]
[1738871048941,0.03001406,190.37,190.31,29.17019933]
[1738871049432,23.88271339,190.37,190.31,5.3175]
[1738871049615,23.85269933,190.35,190.31,5.3175]
[1738871050640,23.85269933,190.35,190.31,0.063]
[1738871051012,23.85269933,190.36,190.31,0.063]
[1738871052317,23.85269933,190.35,190.31,0.063]
[1738871053027,23.85269933,190.36,190.31,0.063]
[1738871053230,56.50911339,190.37,190.31,0.063]
[1738871053612,23.85269933,190.36,190.31,0.063]
[1738871053812,23.85269933,190.33,190.31,0.063]
[1738871054030,23.85269933,190.32,190.31,0.063]
[1738871054613,6.285,190.35,190.31,0.063]
[1738871054948,0.10857351,190.32,190.31,0.063]
[1738871055761,0.10857351,190.32,190.31,23.91569933]
[1738871056636,0.10857351,190.32,190.31,0.063]
[1738871056839,0.10857351,190.32,190.31,23.91569933]
[1738871057837,0.10857351,190.32,190.31,29.17019933]
[1738871060749,0.10857351,190.32,190.31,14.98018397]
[1738871062255,0.10857351,190.32,190.31,20.23468397]
[1738871062431,7.351e-05,190.32,190.31,21.02261793]
[1738871063367,0.10790725,190.33,190.31,21.02261793]
[1738871063368,8.076e-05,190.33,190.32,20.12549]
[1738871063538,8.076e-05,190.33,190.32,35.04267397]
[1738871065135,8.076e-05,190.33,190.32,40.29697397]
[1738871066143,44.91718397,190.49,190.34,13.53733853]
[1738871066349,2.625,190.48,190.38,14.91718397]
[1738871066534,17.54218397,190.48,190.38,14.91718397]
[1738871067136,17.54218397,190.48,190.38,20.16978397]
[1738871067730,32.6251,190.47,190.38,20.16978397]
[1738871067959,47.54228397,190.47,190.38,20.16978397]
[1738871068335,14.91718397,190.46,190.38,20.16978397]
[1738871068536,14.91718397,190.44,190.37,14.91718397]
[1738871068757,17.54288397,190.43,190.36,14.91718397]
[1738871068930,14.94718397,190.42,190.35,20.17038397]
[1738871069332,15.01763202,190.4,190.35,5.2532]
[1738871069956,15.02267706,190.39,190.32,20.17148397]
[1738871071150,0.10549309,190.39,190.36,14.91718397]
[1738871071354,0.10549309,190.39,190.37,14.91718397]
[1738871071550,0.10549309,190.39,190.35,14.91718397]
[1738871071756,0.10549309,190.39,190.34,14.91718397]
[1738871072864,0.10549309,190.39,190.35,20.17058397]
[1738871073062,0.10549309,190.39,190.36,14.91718397]
[1738871073368,0.10549309,190.39,190.35,20.17058397]
[1738871074165,0.10549309,190.39,190.36,14.91718397]
[1738871074973,0.10174219,190.37,190.35,14.91718397]
[1738871076469,0.10174219,190.37,190.36,5.2532]
[1738871079054,0.10174219,190.37,190.35,20.17058397]
[1738871079556,0.10174219,190.37,190.33,14.91718397]
[1738871079756,0.10174219,190.37,190.34,5.2537]
[1738871079979,0.10174219,190.37,190.34,20.17088397]
[1738871080368,0.10174219,190.37,190.35,14.91718397]
[1738871080564,0.10174219,190.37,190.35,20.17058397]
[1738871082692,0.10174219,190.37,190.36,14.91718397]
[1738871082991,0.10174219,190.37,190.35,14.91718397]
[1738871083584,0.10174219,190.37,190.32,14.98018397]
[1738871084680,0.10174219,190.37,190.32,0.063]
[1738871084984,14.91718397,190.36,190.32,0.063]
[1738871085677,14.91718397,190.35,190.32,0.063]
[1738871086312,14.91718397,190.34,190.32,0.063]
[1738871086979,14.91718397,190.33,190.32,0.063]
[1738871087185,22.90368397,190.33,190.32,0.063]
[1738871088098,25.53068397,190.33,190.32,0.063]
[1738871094291,7.9865,190.33,190.32,0.063]
[1738871094530,14.91718397,190.36,190.32,0.063]
[1738871094829,15.01894321,190.33,190.32,0.063]
[1738871095029,58.68177174,190.33,190.32,0.063]
[1738871096524,61.30877174,190.33,190.32,0.063]
[1738871097931,61.43426174,190.33,190.32,0.063]
[1738871098097,62.43426174,190.33,190.32,0.063]
[1738871098591,62.30877174,190.33,190.32,0.063]
[1738871098815,61.30877174,190.33,190.32,0.063]
[1738871099236,61.43426174,190.33,190.32,0.063]
[1738871099430,62.43426174,190.33,190.32,0.063]
[1738871099598,63.43426174,190.33,190.32,0.063]
[1738871099998,62.43426174,190.33,190.32,0.063]
[1738871100406,63.43426174,190.33,190.32,0.063]
[1738871100824,72.5479191,190.33,190.32,0.0001]